Cogmind - Beta 9.3 *** ADVENTURER MODE // 2019.12.31 @ 21:53:15 Player: Lehitarien Result: Destroyed by Y-45 Defender with Heavy Assault Rifle Performance ------------- Evolutions (1) 500 Regions Visited (4) 800 Robots Destroyed (24) 120 Value Destroyed (549) 549 Prototype IDs (0) 0 Alien Tech Used (0) 0 Bonus (0) 0 TOTAL SCORE: 1969 Bonus ------- None Cogmind --------- Core Integrity 0/400 Matter 274/300 Energy 98/100 System Corruption 0% Temperature Cool (6) Movement Core (50) Location -9/Storage Parts ------- > --- POWER (1) -------- (None) > --- PROPULSION (3) --- (None) > --- UTILITY (3) ------ ECM Suite > --- WEAPON (2) ------- (None) > --- INVENTORY (4) ---- Grenade Launcher Peak State ------------ > --- POWER ------------ Fission Core > --- PROPULSION ------- VTOL Module VTOL Module VTOL Module > --- UTILITY ---------- Targeting Computer ECM Suite Drone Bay > --- WEAPON ----------- Flail > --- INVENTORY -------- Light Ion Engine Grenade Launcher [Rating: 20] Favorites ----------- Power Light Ion Engine Engine Light Ion Engine Power Core Fission Core Propulsion Wheel Leg Aluminum Leg Wheel Wheel Flight Unit VTOL Module Utility ECM Suite Device ECM Suite Storage Medium Matter Pod Processor Targeting Computer Weapon Assault Rifle Energy Gun Particle Gun Ballistic Gun Assault Rifle Launcher Grenade Launcher Special Weapon Plasma Cutter Impact Weapon Flail Build | -11 -10 -10 -9 -9 ------- Run | Scr Mat Min Mat Sto Slots Evolved 2 | . . . 2 . Power . | . . . . . Propulsion 1 | . . . 1 . Utility 1 | . . . 1 . Weapon . | . . . . . Parts Attached 44 | 9 8 6 12 9 Power 6 | 1 1 1 2 1 Engine 4 | 1 1 . 1 1 Core 2 | . . 1 1 . Reactor . | . . . . . Propulsion 11 | 4 . 1 5 1 Treads . | . . . . . Leg 2 | 2 . . . . Wheel 4 | 2 . 1 1 . Hover . | . . . . . Flight 5 | . . . 4 1 Utility 16 | 2 6 1 2 5 Device 13 | 1 5 . 2 5 Storage 1 | . 1 . . . Processor 2 | 1 . 1 . . Hackware . | . . . . . Protection . | . . . . . Artifact . | . . . . . Weapon 11 | 2 1 3 3 2 Energy Gun 2 | . 1 1 . . Energy Cannon . | . . . . . Ballistic Gun 3 | 2 . 1 . . Ballistic Cannon . | . . . . . Launcher 4 | . . 1 2 1 Special Weapon 1 | . . . . 1 Impact Weapon 1 | . . . 1 . Slashing Weapon . | . . . . . Piercing Weapon . | . . . . . Special Melee Weapon . | . . . . . Unidentified Prototypes . | . . . . . Parts Lost 9 | . . . 2 7 Power 2 | . . . . 2 Propulsion 5 | . . . 1 4 Utility 2 | . . . 1 1 Weapon . | . . . . . Highest Loss Streak 5 | . . . 2 5 Average Slot Usage (%) 90 | . 98 100 84 52 Engine 6 | . 14 2 . . Core 6 | . . 11 11 8 Wheel 21 | . 28 28 14 . Flight 5 | . . . 16 22 Device 15 | . 15 16 14 11 Storage 1 | . 4 . . . Processor 8 | . 6 11 11 . Energy Gun 5 | . 1 14 5 . Ballistic Gun 15 | . 26 13 5 . Impact Weapon 1 | . . . 3 5 Naked Turns . | . . . . . Heaviest Build 19 | 8 10 17 17 19 Greatest Support 36 | 20 20 26 36 15 Greatest Overweight (x) 1 | . . . 1 1 Average Overweight (x) . | . . . . . Largest Inventory Capacity 4 | 4 4 4 4 4 Average Capacity 4 | 4 4 4 4 4 Most Carried 4 | 4 4 4 4 4 Average Carried 3 | 2 3 3 2 2 Final Capacity 4 | 4 4 4 4 4 Final Carried 4 | 4 3 4 3 1 Class Distribution -------------------- 95% | Mutant 4% | Scavenger-Mutant Dominant Class ---------------- Mutant | -10/Materials Mutant | -10/Mines Mutant | -9/Materials Mutant | -9/Storage Resources | -11 -10 -10 -9 -9 ----------- Run | Scr Mat Min Mat Sto Matter Collected 882 | 324 155 220 158 25 Remotely . | . . . . . Salvage Created 734 | 132 155 180 201 66 Parts 64 | 17 12 14 17 4 Haulers Intercepted . | . . . . . Recyclers Shooed 3 | . 2 . . 1 Parts Field Recycled . | . . . . . Retrieved Matter . | . . . . . Parts Self-Destructed . | . . . . . Prevented . | . . . . . Kills | -11 -10 -10 -9 -9 ------- Run | Scr Mat Min Mat Sto Combat Hostiles Destroyed 13 | 1 2 5 4 1 Melee 1 | . . . 1 . Guns 7 | 1 2 3 1 . AOE 3 | . . 2 1 . Classes Destroyed 7 | 3 . 2 2 . Worker 4 | 1 2 1 . . Builder 1 | . . 1 . . Tunneler 4 | 4 . . . . Operator 2 | . . . 1 1 Grunt 9 | 1 2 4 2 . Sentry 3 | . . . 2 1 Assembled 1 | . . 1 . . Best Kill Streak 5 | 5 2 2 1 1 Combat Bots Only 2 | 1 2 2 1 1 Max Kills in Single Turn 2 | 1 1 2 1 1 Gunslinging . | . . . . . Exploded 2 | . . 2 1 . Melee 1 | . . . 1 . Uniques/NPCs Destroyed . | . . . . . Combat | -11 -10 -10 -9 -9 -------- Run | Scr Mat Min Mat Sto Damage Taken 1043 | 17 107 92 355 472 Core 452 | . 35 16 150 251 Absorbed by Shields . | . . . . . Core Remaining (%) 89 | 100 . 79 . . Volleys Fired 70 | 9 25 19 17 . Largest 2 | 2 2 2 2 . Hottest 85 | 40 85 85 85 . Shots Fired 124 | 18 50 36 20 . Gun 121 | 18 50 34 19 . Cannon . | . . . . . Launcher 3 | . . 2 1 . Special . | . . . . . Kinetic 99 | 18 48 17 16 . Thermal 22 | . 2 17 3 . Explosive 3 | . . 2 1 . Electromagnetic . | . . . . . Robot Hit Streak 19 | 6 10 19 15 . Robot Miss Streak 2 | 1 2 2 2 . Penetration Max . | . . . . . Secondary Targets 1 | . . 1 . . Max Gunslinging Chain 1 | . . 1 . . Shots Hit Robots 109 | 11 39 28 25 6 Core Hits 36 | 7 9 9 7 4 Critical Hits 1 | . 1 . . . Critical Kills 1 | . 1 . . . Critical Parts Destroyed . | . . . . . Melee Attacks 16 | . . . 10 6 Impact 16 | . . . 10 6 Slashing . | . . . . . Piercing . | . . . . . Sneak Attacks . | . . . . . Combat Hostiles . | . . . . . Follow-up Attacks . | . . . . . Damage Inflicted 1569 | 127 343 470 441 188 Guns 1079 | 127 343 390 219 . Cannons . | . . . . . Explosions 101 | . . 80 21 . Melee 373 | . . . 201 172 Ramming 16 | . . . . 16 Kinetic 784 | 127 329 140 188 . Thermal 295 | . 14 250 31 . Explosive 101 | . . 80 21 . Electromagnetic . | . . . . . Impact 373 | . . . 201 172 Slashing . | . . . . . Piercing . | . . . . . Highest Corruption . | . . . . . Average Corruption . | . . . . . Corruption Purged . | . . . . . Overload Shots . | . . . . . Overflow Damage 39 | . . . 10 29 Projectiles . | . . . . . Explosions . | . . . . . Melee 39 | . . . 10 29 Knockbacks . | . . . . . Impact . | . . . . . Kinetic . | . . . . . Secondary . | . . . . . Self-Inflicted Damage 7 | . . . . 7 Shots . | . . . . . Rammed 4 | . . . . 4 Targets Rammed 4 | . . . . 4 Kicked . | . . . . . Crushed . | . . . . . Highest Temperature 225 | . 2 225 24 2 Average Temperature 65 | . 1 78 10 1 Received Heat Transfer 480 | 12 81 57 138 192 Siege Activations . | . . . . . Robots Corrupted . | . . . . . Combat Hostiles . | . . . . . Parts Fried 5 | . . . 1 4 Impact Corruptions 4 | . . . 2 2 Robots Melted . | . . . . . Combat Hostiles . | . . . . . Parts Melted . | . . . . . Heat Transferred 666 | . 37 555 74 . Parts Sabotaged . | . . . . . Parts Stolen . | . . . . . Parts Stripped . | . . . . . Power Chain Reactions . | . . . . . Missiles Intercepted . | . . . . . Alert | -11 -10 -10 -9 -9 ------- Run | Scr Mat Min Mat Sto Peak Influence 166 | 45 115 110 166 144 Average Influence 50 | 18 39 45 82 73 Maximum Alert Level . | . . . . . Low Security (%) 100 | 100 100 100 100 100 Level 1 . | . . . . . Level 2 . | . . . . . Level 3 . | . . . . . Level 4 . | . . . . . Level 5 . | . . . . . High Security . | . . . . . Max Security . | . . . . . Squads Dispatched 4 | . . . 1 3 Investigation . | . . . . . Extermination . | . . . . . Reinforcement 4 | . . . 1 3 Assault . | . . . . . Garrison . | . . . . . Intercept . | . . . . . Construction Impeded . | . . . . . Haulers Reinforced . | . . . . . Stealth | -11 -10 -10 -9 -9 --------- Run | Scr Mat Min Mat Sto Distress Signals 1 | . . . . 1 Communications Jammed . | . . . . . Distress Signals . | . . . . . Times Spotted 47 | 1 5 13 10 18 Peak Tracking Total 13 | 1 3 13 5 12 Tactical Retreats 4 | . . 1 . 3 Traps | -11 -10 -10 -9 -9 ------- Run | Scr Mat Min Mat Sto Traps Triggered 1 | . . . . 1 Indirectly . | . . . . . Trap Hack Attempts . | . . . . . Triggered . | . . . . . Disarmed . | . . . . . Reprogrammed . | . . . . . Reused . | . . . . . Traps Extracted . | . . . . . Installed . | . . . . . Triggered . | . . . . . Machines | -11 -10 -10 -9 -9 ---------- Run | Scr Mat Min Mat Sto Machines Disabled . | . . . . . Max in Single Turn . | . . . . . Machines Sabotaged . | . . . . . Garrisons Compromised . | . . . . . Overloaded Fab Kills . | . . . . . Fab Network Shutdowns . | . . . . . Hacking | -11 -10 -10 -9 -9 --------- Run | Scr Mat Min Mat Sto Machines Accessed 3 | . . . 1 2 Terminals 2 | . . . . 2 Fabricators . | . . . . . Repair Stations . | . . . . . Recycling Units . | . . . . . Scanalyzers 1 | . . . 1 . Garrison Access . | . . . . . Total Hacks 10 | . . . 8 2 Successful 9 | . . . 8 1 Failed 1 | . . . . 1 Catastrophic . | . . . . . Database Lockouts . | . . . . . Manual 4 | . . . . 4 Terminals 2 | . . . . 2 Fabricators . | . . . . . Repair Stations . | . . . . . Recycling Units . | . . . . . Scanalyzers 8 | . . . 8 . Garrison Access . | . . . . . Terminal Hacks 1 | . . . . 1 Open Door 1 | . . . . 1 Fabricator Hacks . | . . . . . Repair Station Hacks . | . . . . . Recycling Unit Hacks . | . . . . . Scanalyzer 8 | . . . 8 . Insert Component 4 | . . . 4 . Analyze 4 | . . . 4 . Garrison Access Hacks . | . . . . . Unauthorized Hacks . | . . . . . Terminals . | . . . . . Fabricators . | . . . . . Repair Stations . | . . . . . Recycling Units . | . . . . . Scanalyzers . | . . . . . Garrison Access . | . . . . . Data Cores Recovered . | . . . . . Used . | . . . . . Hacking Detections 2 | . . . 1 1 Full Trace Events . | . . . . . Feedback Events . | . . . . . Feedback Blocked . | . . . . . Robot Schematics Acquired . | . . . . . Robots Built . | . . . . . Matter . | . . . . . Time . | . . . . . Total Robot Build Rating . | . . . . . Part Schematics Acquired 4 | . . . 4 . Parts Built . | . . . . . Matter . | . . . . . Time . | . . . . . Total Part Build Rating . | . . . . . Parts Repaired . | . . . . . Time . | . . . . . Parts Recycled . | . . . . . Recycled Matter . | . . . . . Retrieved Matter . | . . . . . Retrieved Components . | . . . . . Parts Scanalyzed 4 | . . . 4 . Part Schematics Acquired 4 | . . . 4 . Parts Damaged . | . . . . . Bothacking | -11 -10 -10 -9 -9 ------------ Run | Scr Mat Min Mat Sto Used RIF Installer . | . . . . . Robots Hacked . | . . . . . Non-combat . | . . . . . Combat . | . . . . . Robot Hacks Applied . | . . . . . Relay Couplers Released . | . . . . . Robots Rewired . | . . . . . Allies Hacked . | . . . . . Hacks Repelled . | . . . . . Allies | -11 -10 -10 -9 -9 -------- Run | Scr Mat Min Mat Sto Total Allies . | . . . . . Largest Group . | . . . . . Highest-Rated Group . | . . . . . Highest-Rated Ally . | . . . . . Total Orders . | . . . . . Ally Attacks . | . . . . . Total Damage . | . . . . . Kills . | . . . . . Allies Corrupted . | . . . . . Allies Melted . | . . . . . Intel | -11 -10 -10 -9 -9 ------- Run | Scr Mat Min Mat Sto Robot Analysis Total . | . . . . . Derelict Logs Recovered 2 | . . 2 . . Drone Launches 6 | . . . . 6 Drone Recoveries . | . . . . . Exploration | -11 -10 -10 -9 -9 ------------- Run | Scr Mat Min Mat Sto Turns Passed 1206 | 117 422 333 183 151 Spaces Moved 1035 | 87 211 296 181 260 Core 48 | 21 . . . 27 Treads . | . . . . . Legs . | . . . . . Wheels 632 | 66 211 296 59 . Hover . | . . . . . Flight 355 | . . . 122 233 Fastest Speed 34 | 50 80 80 34 34 Average Speed 66 | 72 80 87 50 39 Slowest Speed 117 | 80 80 90 117 117 Overloaded Moves . | . . . . . Propulsion Burnouts . | . . . . . Robots Hopped 6 | . . . . 6 Cave-ins Triggered . | . . . . . Exploration Rate (%) 34 | 7 37 56 18 53 Regions Visited 4 Branch Regions 2 Pre-discovered Areas 1 | . . 1 . . Known Exits Taken 1 | . . . 1 . Unknown Exits Taken 3 | 1 1 1 . . Scrap Searched 2 | . . 2 . . Spaces Dug . | . . . . . Terrain Destroyed 21 | . . 16 5 . Melee . | . . . . . Projectile . | . . . . . AOE 21 | . . 16 5 . Actions | -11 -10 -10 -9 -9 --------- Run | Scr Mat Min Mat Sto Total 1408 | 124 416 333 237 298 Wait 176 | 1 160 . 4 11 Move 1020 | 86 210 295 180 249 Hop 5 | . . . . 5 Pick Up 40 | 14 6 7 7 6 Fast Attach . | . . . . . Attach 33 | 9 6 2 7 9 Detach 4 | 2 . . 1 1 Swap 11 | . 2 4 5 . Drop 29 | 3 7 6 6 7 Fire 70 | 9 25 19 17 . Melee 16 | . . . 10 6 Ram 4 | . . . . 4 Kick . | . . . . . Crush . | . . . . . Escape Stasis . | . . . . . Rewire . | . . . . . Trap . | . . . . . Miscellaneous . | . . . . . Route ------- -11/Scrapyard -10/Materials -10/Mines -9/Materials (discovered 2 exits: *Sto x2) -9/Storage History --------- Turn | Location | Event 2 | -11/Scrapyard | Met Revision 17 61 | -11/Scrapyard | Discovered new exit (range 8) 118 | -11/Scrapyard | Entered Materials 305 | -10/Materials | Build established: Mutant 393 | -10/Materials | Discovered new exit (range 16) 540 | -10/Materials | Entered Mines 541 | -10/Mines | Assembled infested the area 546 | -10/Mines | Assisted by a Guerilla fighting off Assembled 819 | -10/Mines | Discovered new exit (range 11) 860 | -10/Mines | Learned location of Storage (-9) 873 | -10/Mines | Entered Materials 873 | -9/Materials | Evolved 2 slots: Propulsion x1, Utility x1 874 | -9/Materials | Identified exit to Storage 914 | -9/Materials | Discovered exit to Storage (range 15) 1056 | -9/Materials | Entered Storage 1132 | -9/Storage | Core integrity fell below 50% 1192 | -9/Storage | Core integrity fell below 20% 1207 | -9/Storage | Destroyed by Y-45 Defender with Heavy Assault Rifle Last Messages --------------- Dropped Plasma Cutter. Dropped Flail. Dropped ECM Suite. K-01 Serf collects debris. Drone destroyed. K-01 Serf destroyed. U-05 Engineer lays Concrete. VTOL Module destroyed. Slammed into Y-45 Defender. Fission Core destroyed. Drone destroyed. Acquired ECM Suite. G-34 Mercenary destroyed. Drone destroyed. Lgt. Ion Engine destroyed. VTOL Module destroyed. Slammed into R-06 Scavenger. Slammed into A-02 Transporter. Slammed into G-34 Mercenary. ECM Suite destroyed. Map ----- +----------------------------------------------------+ | ?############ ## / #####+############??????????? | | ?# ## ## #??# + """ """ #??????????? | | ?#! ## ### ###??# # """ """ #??????????? | | ?# ! #== ####T#### # """ """ #??????????? | | ?#! +%[ # #??????????? | | ?# #[ % + [ #?????????? | | ?# % # = ######### # ##?????????? | | ?# ## ###???????# # #??????????? | | ?# ## #?????????# # #??????????? | | ?#######+#### #?????????# ###########??????????? | | ????#### #??# #????????## #### ######??????????? | | ????# # ####+#######??#T # #??????????? | | ????" # # #??## # """ #??????????? | | ????" + # """ #???# g # """ #??????????? | | ????" # # """ #???# # """ #??????????? | | ????#T## # """ #???# + """ #??????????? | | ????#### + #???# # R" #??????????? | | ???????# # " " #???# #!|/ """ #??????????? | | ???????# # "Y" #???# a # #??????????? | | ???????# # """ #???# a #/#########??????????? | | #####??# # #???# # #??????############# | | ##T#### ########+##?## ### #??????# | | % ! ### ## ######## | | *%= % ag % + % | | [ ### ## ##### | | ###############+#####?##@### #???# | | ############# #??# ###+##+#???############# | | # # """ #??# # #???????????????? | | # """ # """ ! #??# # ##??????????????? | | # """ # """ #### # """ #??????????????? | | + """ """ # + + """ ##??????????????? | | # "Y """ # """ # # """ #???????????????? | | # """ """ # """ # # #???????????????? | | # # """ + ##+#####???????????????? | | ############# #### ??????????????????????? | | #???????????##########??# ??????????????????????? | | #???????????????????????+ ??????????????????????? | | #???????????????????????###??????????????????????? | | #????????????????????????????????????????????????? | | ###??????????????????????????????????????????????? | | #T######?????????????????????????????????????????? | | # !#?????????????????????????????????????????? | | ! #?????????????????????????????????????????? | | #!!!!#?????????????????????????????????????????? | | ######?????????????????????????????????????????? | | ###??????????????????????????????????????????????? | | #????????????????????????????????????????????????? | | #????????????????????????????????????????????????? | | ?????????????????????????????????????????????????? | | ?????????????????????????????????????????????????? | +----------------------------------------------------+ Best States ------------- Heat Dissipation 42 Energy Generation 18 Energy Capacity 310 Matter Stores 300 Matter Capacity 400 Sight Range 16 Terrain Scan Range 16 Terrain Scan Density 60 ECM Strength 1 Resistance: KI 20 Resistance: TH 20 Resistance: EX 20 Resistance: EM 20 Resistance: I 20 Resistance: S 20 Resistance: P 20 Evasion (%) 63 Targeting Accuracy 5 Offensive Hacking 10 Item Schematics ----------------- VTOL Module | -9/Materials | Scanalyzed Grenade Launcher | -9/Materials | Scanalyzed Fission Core | -9/Materials | Scanalyzed ECM Suite | -9/Materials | Scanalyzed Robot Schematics ------------------ None Fabricated ------------ Nothing Alien Tech Used ----------------- None Achievements -------------- Release The Drones! Slippery One Challenges ------------ None Game ------ Seed RagnarokDeuteriumWheel Manual? 0 Play Time 00:41:37 Cumulative 3.6 hours Start 2019.12.31 @ 21:05:19 End 2019.12.31 @ 21:53:15 Sessions 1 Manual Loads 0 Difficulty Adventurer Special Mode None Game No. 2 Rogue 0 Adventurer 2 Explorer 0 Win Type - Total 0 Types 0/0/0/0/0/0/0 Lore% 4 Gallery% 5 Achievement% 5 Wizard Run 0 Options --------- ASCII 0 Keyboard 0 Movement Numpad Keybinds 0 Fullscreen 1 Font 18/X11 Map View 76x50 Tactical HUD 0 Map Filters NONE Filters NONE Steam 1 RUN: fabd7725-8a03-40f9-b15f-48d21579208b